Workbook

Sheet Materiales
B1: Factor de Afectación Global:
A2: Código | B2: Recurso | C2: Unidad | D2: Precio | E2: Precio Afectado | F2: Factor de Afectación Particular | G2: Rubro | H2: Grupo
A3: =IF(B3<>"",1,"") -> 1 | B3: Arena | C3: m3 | D3: 20 | E3: =IF(D3<>"",IF(AND($F$1<>"",F3<>""),D3*$F$1*F3,IF($F$1<>"",D3*$F$1,IF(F3<>"",F3*D3,D3))),"") -> 20 | G3: Aridos | H3: MA
A4: =IF(AND(B3<>"",B4<>""),A3+1,"") -> 2 | B4: Cemento | C4: Kg | D4: 0.4 | E4: =IF(D4<>"",IF(AND($F$1<>"",F4<>""),D4*$F$1*F4,IF($F$1<>"",D4*$F$1,IF(F4<>"",F4*D4,D4))),"") -> 0.4 | G4: Cales y Cementos | H4: MA
A5: =IF(AND(B4<>"",B5<>""),A4+1,"") -> 3 | B5: Cal | C5: Kg | D5: 0.34 | E5: 0.34 | G5: Cales y Cementos | H5: MA
A6: 4 | B6: Cemento de Albañilería | C6: Kg | D6: 0.34 | E6: 0.34 | G6: Cales y Cementos | H6: MA
A7: 5 | B7: Hierro | C7: Kg | D7: 8 | E7: 8 | G7: Hierros | H7: MA
A8: 6 | B8: Piedra | C8: Tn | D8: 25 | E8: 25 | G8: Aridos | H8: MA
A9: 7 | B9: Clavos | C9: Kg | D9: 6.5 | E9: 6.5 | G9: Hierros | H9: MA
A10: 8 | B10: Alambre | C10: Kg | D10: 6.5 | E10: 6.5 | G10: Hierros | H10: MA
A11: 9 | B11: Oficial | C11: Hs | D11: 6.5 | E11: 6.5 | G11: Mano de Obra | H11: MO
A12: 10 | B12: Ayudante | C12: Hs | D12: 4.5 | E12: 4.5 | G12: Mano de Obra | H12: MO
A13: 11 | B13: Trompo | C13: Hs | D13: 20 | E13: 20 | G13: Equipos | H13: EH
A14: 12 | B14: Camión | C14: Hs | D14: 75 | E14: 75 | G14: Equipos | H14: EH
A15: 13 | B15: Retroexcavadora | C15: Hs | D15: 85 | E15: 85 | G15: Equipos | H15: EH
A16: 14 | B16: Enseres de Obra Indeterminados | C16: Gl | D16: 2.5 | E16: 2.5 | G16: Herramientas | H16: EH
A17: 15 | B17: Pegamento Cerámicos | C17: Kg | D17: 0.3 | E17: 0.3 | G17: Cales y Cementos | H17: MA
A18: 16 | B18: Cemento blanco | C18: kg | D18: 0.32 | E18: 0.32 | G18: Cales y Cementos | H18: MA
A19: 17 | B19: Azulejos 15 x 15 | C19: m2 | D19: 15 | E19: 15 | G19: Pisos | H19: MA
A20: 18 | B20: Baldosa 30 x 30 | C20: m2 | D20: 45 | E20: 45 | G20: Pisos | H20: MA
A21: 19 | B21: Fe 10 | C21: Kg | D21: 8 | E21: 8 | G21: Hierros | H21: MA
A22: 20 | B22: Bloque de Hormigón 10 x 20 x 40 1 cara vista | C22: Nº | D22: 1.15 | E22: 1.15 | G22: Bloques y Ladrillos | H22: MA
A23: 21 | B23: Bloque de Hormigón 20 x 20 x 40 1 cara vista | C23: Nº | D23: 1.55 | E23: 1.55 | G23: Bloques y Ladrillos | H23: MA
A24: 22 | B24: Bloque de Hormigón 10 x 20 x 40 2 caras vista | C24: Nº | D24: 1.25 | E24: 1.25 | G24: Bloques y Ladrillos | H24: MA
A25: 23 | B25: Bloque de Hormigón 20 x 20 x 40 2 caras vista | C25: Nº | D25: 1.75 | E25: 1.75 | G25: Bloques y Ladrillos | H25: MA
A26: 24 | B26: Bloque de Hormigón 10 x 19 x39 | C26: Nº | D26: 0.95 | E26: 0.95 | G26: Bloques y Ladrillos | H26: MA
A27: 25 | B27: Bloque de Hormigón 20 x 19 x 39 | C27: Nº | D27: 1.1 | E27: 1.1 | G27: Bloques y Ladrillos | H27: MA
A28: 26 | B28: Hidrófugo | C28: Kg | D28: 4.5 | E28: 4.5 | G28: Aislaciones | H28: MA
A29: 27 | B29: Ladrillo común | C29: Nº | D29: 0.4 | E29: 0.4 | G29: Bloques y Ladrillos | H29: MA
A30: 28 | B30: Cascote de Ladrillos molidos. | C30: m3 | D30: 50 | E30: 50 | G30: Bloques y Ladrillos | H30: MA
A31: 29 | B31: Pastina para Cerámicos | C31: Kg | D31: 2.5 | E31: 2.5 | G31: Cales y Cementos | H31: MA
A32: 30 | B32: Cerámico 30 x 30 | C32: m2 | D32: 19 | E32: 19 | G32: Pisos | H32: MA
A33: 31 | B33: Adoquines | C33: m2 | D33: 25 | E33: 25 | G33: Pisos | H33: MA
A34: 32 | B34: Ingeniero | C34: Hs | D34: 60 | E34: 60 | G34: Mano de Obra | H34: MO
A35: 33 | B35: Subcontrato Mano de Obra Pintura | C35: Gl | D35: 5 | E35: 5 | G35: Mano de Obra | H35: MO
A36: 34 | B36: Subcontrato Materiales Pintura | C36: Gl | D36: 3 | E36: 3 | G36: Pintura | H36: MA
A37: 35 | B37: Fe 8 | C37: Kg | D37: 6 | E37: 6 | G37: Hierros | H37: MA
A38: 36 | B38: Fe 4,2 | C38: Kg | D38: 5 | E38: 5 | G38: Hierros | H38: MA
A39: 37 | B39: Madera | C39: m2 | D39: 25 | E39: 25 | G39: Maderas | H39: MA
E68: =IF(D68<>"",IF(AND($F$1<>"",F68<>""),D68*$F$1*F68,IF($F$1<>"",D68*$F$1,IF(F68<>"",F68*D68,D68))),"") -> 
A69: =IF(AND(B68<>"",B69<>""),A68+1,"") -> 
E132: =IF(D132<>"",IF(AND($F$1<>"",F132<>""),D132*$F$1*F132,IF($F$1<>"",D132*$F$1,IF(F132<>"",F132*D132,D132))),"") -> 
A133: =IF(AND(B132<>"",B133<>""),A132+1,"") -> 
E196: =IF(D196<>"",IF(AND($F$1<>"",F196<>""),D196*$F$1*F196,IF($F$1<>"",D196*$F$1,IF(F196<>"",F196*D196,D196))),"") -> 
A197: =IF(AND(B196<>"",B197<>""),A196+1,"") -> 
E260: =IF(D260<>"",IF(AND($F$1<>"",F260<>""),D260*$F$1*F260,IF($F$1<>"",D260*$F$1,IF(F260<>"",F260*D260,D260))),"") -> 
A261: =IF(AND(B260<>"",B261<>""),A260+1,"") -> 
E324: =IF(D324<>"",IF(AND($F$1<>"",F324<>""),D324*$F$1*F324,IF($F$1<>"",D324*$F$1,IF(F324<>"",F324*D324,D324))),"") -> 
A325: =IF(AND(B324<>"",B325<>""),A324+1,"") -> 
E388: =IF(D388<>"",IF(AND($F$1<>"",F388<>""),D388*$F$1*F388,IF($F$1<>"",D388*$F$1,IF(F388<>"",F388*D388,D388))),"") -> 
A389: =IF(AND(B388<>"",B389<>""),A388+1,"") -> 
E452: =IF(D452<>"",IF(AND($F$1<>"",F452<>""),D452*$F$1*F452,IF($F$1<>"",D452*$F$1,IF(F452<>"",F452*D452,D452))),"") -> 
A453: =IF(AND(B452<>"",B453<>""),A452+1,"") -> 
E516: =IF(D516<>"",IF(AND($F$1<>"",F516<>""),D516*$F$1*F516,IF($F$1<>"",D516*$F$1,IF(F516<>"",F516*D516,D516))),"") -> 
A517: =IF(AND(B516<>"",B517<>""),A516+1,"") -> 
E580: =IF(D580<>"",IF(AND($F$1<>"",F580<>""),D580*$F$1*F580,IF($F$1<>"",D580*$F$1,IF(F580<>"",F580*D580,D580))),"") -> 
A581: =IF(AND(B580<>"",B581<>""),A580+1,"") -> 
E644: =IF(D644<>"",IF(AND($F$1<>"",F644<>""),D644*$F$1*F644,IF($F$1<>"",D644*$F$1,IF(F644<>"",F644*D644,D644))),"") -> 
A645: =IF(AND(B644<>"",B645<>""),A644+1,"") -> 
E708: =IF(D708<>"",IF(AND($F$1<>"",F708<>""),D708*$F$1*F708,IF($F$1<>"",D708*$F$1,IF(F708<>"",F708*D708,D708))),"") -> 
A709: =IF(AND(B708<>"",B709<>""),A708+1,"") -> 
E772: =IF(D772<>"",IF(AND($F$1<>"",F772<>""),D772*$F$1*F772,IF($F$1<>"",D772*$F$1,IF(F772<>"",F772*D772,D772))),"") -> 
A773: =IF(AND(B772<>"",B773<>""),A772+1,"") -> 
E836: =IF(D836<>"",IF(AND($F$1<>"",F836<>""),D836*$F$1*F836,IF($F$1<>"",D836*$F$1,IF(F836<>"",F836*D836,D836))),"") -> 
A837: =IF(AND(B836<>"",B837<>""),A836+1,"") -> 
E900: =IF(D900<>"",IF(AND($F$1<>"",F900<>""),D900*$F$1*F900,IF($F$1<>"",D900*$F$1,IF(F900<>"",F900*D900,D900))),"") -> 
A901: =IF(AND(B900<>"",B901<>""),A900+1,"") -> 
E964: =IF(D964<>"",IF(AND($F$1<>"",F964<>""),D964*$F$1*F964,IF($F$1<>"",D964*$F$1,IF(F964<>"",F964*D964,D964))),"") -> 
A965: =IF(AND(B964<>"",B965<>""),A964+1,"") -> 
E1028: =IF(D1028<>"",IF(AND($F$1<>"",F1028<>""),D1028*$F$1*F1028,IF($F$1<>"",D1028*$F$1,IF(F1028<>"",F1028*D1028,D1028))),"") -> 
A1029: =IF(AND(B1028<>"",B1029<>""),A1028+1,"") -> 
E1092: =IF(D1092<>"",IF(AND($F$1<>"",F1092<>""),D1092*$F$1*F1092,IF($F$1<>"",D1092*$F$1,IF(F1092<>"",F1092*D1092,D1092))),"") -> 
A1093: =IF(AND(B1092<>"",B1093<>""),A1092+1,"") -> 
E1156: =IF(D1156<>"",IF(AND($F$1<>"",F1156<>""),D1156*$F$1*F1156,IF($F$1<>"",D1156*$F$1,IF(F1156<>"",F1156*D1156,D1156))),"") -> 
A1157: =IF(AND(B1156<>"",B1157<>""),A1156+1,"") -> 
E1220: =IF(D1220<>"",IF(AND($F$1<>"",F1220<>""),D1220*$F$1*F1220,IF($F$1<>"",D1220*$F$1,IF(F1220<>"",F1220*D1220,D1220))),"") -> 
A1221: =IF(AND(B1220<>"",B1221<>""),A1220+1,"") -> 
E1284: =IF(D1284<>"",IF(AND($F$1<>"",F1284<>""),D1284*$F$1*F1284,IF($F$1<>"",D1284*$F$1,IF(F1284<>"",F1284*D1284,D1284))),"") -> 
A1285: =IF(AND(B1284<>"",B1285<>""),A1284+1,"") -> 
E1348: =IF(D1348<>"",IF(AND($F$1<>"",F1348<>""),D1348*$F$1*F1348,IF($F$1<>"",D1348*$F$1,IF(F1348<>"",F1348*D1348,D1348))),"") -> 
A1349: =IF(AND(B1348<>"",B1349<>""),A1348+1,"") -> 
E1412: =IF(D1412<>"",IF(AND($F$1<>"",F1412<>""),D1412*$F$1*F1412,IF($F$1<>"",D1412*$F$1,IF(F1412<>"",F1412*D1412,D1412))),"") -> 
A1413: =IF(AND(B1412<>"",B1413<>""),A1412+1,"") -> 
E1476: =IF(D1476<>"",IF(AND($F$1<>"",F1476<>""),D1476*$F$1*F1476,IF($F$1<>"",D1476*$F$1,IF(F1476<>"",F1476*D1476,D1476))),"") -> 
A1477: =IF(AND(B1476<>"",B1477<>""),A1476+1,"") -> 
E1540: =IF(D1540<>"",IF(AND($F$1<>"",F1540<>""),D1540*$F$1*F1540,IF($F$1<>"",D1540*$F$1,IF(F1540<>"",F1540*D1540,D1540))),"") -> 
A1541: =IF(AND(B1540<>"",B1541<>""),A1540+1,"") -> 
E1604: =IF(D1604<>"",IF(AND($F$1<>"",F1604<>""),D1604*$F$1*F1604,IF($F$1<>"",D1604*$F$1,IF(F1604<>"",F1604*D1604,D1604))),"") -> 
A1605: =IF(AND(B1604<>"",B1605<>""),A1604+1,"") -> 
E1668: =IF(D1668<>"",IF(AND($F$1<>"",F1668<>""),D1668*$F$1*F1668,IF($F$1<>"",D1668*$F$1,IF(F1668<>"",F1668*D1668,D1668))),"") -> 
A1669: =IF(AND(B1668<>"",B1669<>""),A1668+1,"") -> 
E1732: =IF(D1732<>"",IF(AND($F$1<>"",F1732<>""),D1732*$F$1*F1732,IF($F$1<>"",D1732*$F$1,IF(F1732<>"",F1732*D1732,D1732))),"") -> 
A1733: =IF(AND(B1732<>"",B1733<>""),A1732+1,"") -> 
E1796: =IF(D1796<>"",IF(AND($F$1<>"",F1796<>""),D1796*$F$1*F1796,IF($F$1<>"",D1796*$F$1,IF(F1796<>"",F1796*D1796,D1796))),"") -> 
A1797: =IF(AND(B1796<>"",B1797<>""),A1796+1,"") -> 
E1860: =IF(D1860<>"",IF(AND($F$1<>"",F1860<>""),D1860*$F$1*F1860,IF($F$1<>"",D1860*$F$1,IF(F1860<>"",F1860*D1860,D1860))),"") -> 
A1861: =IF(AND(B1860<>"",B1861<>""),A1860+1,"") -> 
E1924: =IF(D1924<>"",IF(AND($F$1<>"",F1924<>""),D1924*$F$1*F1924,IF($F$1<>"",D1924*$F$1,IF(F1924<>"",F1924*D1924,D1924))),"") -> 
A1925: =IF(AND(B1924<>"",B1925<>""),A1924+1,"") -> 
E1988: =IF(D1988<>"",IF(AND($F$1<>"",F1988<>""),D1988*$F$1*F1988,IF($F$1<>"",D1988*$F$1,IF(F1988<>"",F1988*D1988,D1988))),"") -> 
A1989: =IF(AND(B1988<>"",B1989<>""),A1988+1,"") -> 
... 73 more rows

Sheet Fórmulas
A1: Análisis de Precios
A3: Mampostería de Ladrillos Comunes en Recalce de Muros | H3: m3
A4: Nº | B4: Código | C4: Recurso | D4: Unidad | E4: Rendimiento | F4: Precio | H4: Grupo
F5: Unitario | G5: Total
A6: =IF(B6<>"",1,"") -> 1 | B6: 27 | C6: =IF(B6<>"",VLOOKUP(B6,Materiales,2,FALSE),"") -> Ladrillo común | D6: =IF(B6<>"",VLOOKUP(B6,Materiales,3,FALSE),"") -> Nº | E6: 400 | F6: =IF(B6<>"",VLOOKUP(B6,Materiales,5,FALSE),"") -> 0.4 | G6: =IF(AND(E6<>"",F6<>""),E6*F6,"") -> 160 | H6: =IF(B6<>"",VLOOKUP(B6,Materiales,8,FALSE),"") -> MA
A7: =IF(AND(B7<>"",B6<>""),A6+1,"") -> 2 | B7: 2 | C7: Cemento | D7: Kg | E7: 170 | F7: 0.4 | G7: 68 | H7: MA
A8: =IF(AND(B8<>"",B7<>""),A7+1,"") -> 3 | B8: 1 | C8: Arena | D8: m3 | E8: 0.36 | F8: 20 | G8: 7.2 | H8: MA
A9: =IF(AND(B9<>"",B8<>""),A8+1,"") -> 4 | B9: 9 | C9: Oficial | D9: Hs | E9: 7.5 | F9: 6.5 | G9: 48.75 | H9: MO
A10: =IF(AND(B10<>"",B9<>""),A9+1,"") -> 5 | B10: 10 | C10: Ayudante | D10: Hs | E10: 10 | F10: 4.5 | G10: 45 | H10: MO
A11: =IF(AND(B11<>"",B7<>""),A7+1,"") -> 3 | B11: 14 | C11: Enseres de Obra Indeterminados | D11: Gl | E11: 1 | F11: 2.5 | G11: 2.5 | H11: EH
C14: Costo - Costo: | G14: =IF(SUM(G6:G11)>0,SUM(G6:G11),"") -> 331.45
C15: Costo Materiales: | G15: =SUMIF(H6:H11,"=MA",G6:G11) -> 235.2
C16: Costo Mano de Obra: | G16: =SUMIF(H6:H11,"=MO",G6:G11) -> 93.75
C17: Costo de Equipos y Herramientas: | G17: =SUMIF(H6:H11,"=EH",G6:G11) -> 2.5
C18: Tiempo: | G18: =MAX(E9:E10) -> 10
A21: Mampostería de Ladrillos Comunes en Elevación | H21: m3
A22: Nº | B22: Código | C22: Recurso | D22: Unidad | E22: Rendimiento | F22: Precio | H22: Grupo
F23: Unitario | G23: Total
A24: =IF(B24<>"",1,"") -> 1 | B24: 27 | C24: =IF(B24<>"",VLOOKUP(B24,Materiales,2,FALSE),"") -> Ladrillo común | D24: =IF(B24<>"",VLOOKUP(B24,Materiales,3,FALSE),"") -> Nº | E24: 400 | F24: =IF(B24<>"",VLOOKUP(B24,Materiales,5,FALSE),"") -> 0.4 | G24: =IF(AND(E24<>"",F24<>""),E24*F24,"") -> 160 | H24: =IF(B24<>"",VLOOKUP(B24,Materiales,8,FALSE),"") -> MA
A25: =IF(AND(B25<>"",B24<>""),A24+1,"") -> 2 | B25: 3 | C25: Cal | D25: Kg | E25: 53 | F25: 0.34 | G25: 18.02 | H25: MA
A26: =IF(AND(B26<>"",B25<>""),A25+1,"") -> 3 | B26: 1 | C26: Arena | D26: m3 | E26: 0.24 | F26: 20 | G26: 4.8 | H26: MA
A27: =IF(AND(B27<>"",B26<>""),A26+1,"") -> 4 | B27: 9 | C27: Oficial | D27: Hs | E27: 6.2 | F27: 6.5 | G27: 40.3 | H27: MO
A28: =IF(AND(B28<>"",B27<>""),A27+1,"") -> 5 | B28: 10 | C28: Ayudante | D28: Hs | E28: 6.5 | F28: 4.5 | G28: 29.25 | H28: MO
A29: =IF(AND(B29<>"",B25<>""),A25+1,"") -> 3 | B29: 14 | C29: Enseres de Obra Indeterminados | D29: Gl | E29: 1.5 | F29: 2.5 | G29: 3.75 | H29: EH
C32: Costo - Costo: | G32: =IF(SUM(G24:G29)>0,SUM(G24:G29),"") -> 256.12
C33: Costo Materiales: | G33: =SUMIF(H24:H29,"=MA",G24:G29) -> 182.82
C34: Costo Mano de Obra: | G34: =SUMIF(H24:H29,"=MO",G24:G29) -> 69.55
C35: Costo de Equipos y Herramientas: | G35: =SUMIF(H24:H29,"=EH",G24:G29) -> 3.75
C36: Tiempo: | G36: =MAX(E28:E29) -> 6.5
A38: Piso de Adoquines | H38: m2
A39: Nº | B39: Código | C39: Recurso | D39: Unidad | E39: Rendimiento | F39: Precio | H39: Grupo
F40: Unitario | G40: Total
A41: =IF(B41<>"",1,"") -> 1 | B41: 1 | C41: =IF(B41<>"",VLOOKUP(B41,Materiales,2,FALSE),"") -> Arena | D41: =IF(B41<>"",VLOOKUP(B41,Materiales,3,FALSE),"") -> m3 | E41: 0.09 | F41: =IF(B41<>"",VLOOKUP(B41,Materiales,5,FALSE),"") -> 20 | G41: =IF(AND(E41<>"",F41<>""),E41*F41,"") -> 1.8 | H41: =IF(B41<>"",VLOOKUP(B41,Materiales,8,FALSE),"") -> MA
A42: =IF(AND(B42<>"",B41<>""),A41+1,"") -> 2 | B42: 31 | C42: =IF(B42<>"",VLOOKUP(B42,Materiales,2,FALSE),"") -> Adoquines | D42: =IF(B42<>"",VLOOKUP(B42,Materiales,3,FALSE),"") -> m2 | E42: 1.05 | F42: =IF(B42<>"",VLOOKUP(B42,Materiales,5,FALSE),"") -> 25 | G42: =IF(AND(E42<>"",F42<>""),E42*F42,"") -> 26.25 | H42: =IF(B42<>"",VLOOKUP(B42,Materiales,8,FALSE),"") -> MA
A43: =IF(AND(B43<>"",B42<>""),A42+1,"") -> 3 | B43: 9 | C43: =IF(B43<>"",VLOOKUP(B43,Materiales,2,FALSE),"") -> Oficial | D43: =IF(B43<>"",VLOOKUP(B43,Materiales,3,FALSE),"") -> Hs | E43: 1 | F43: =IF(B43<>"",VLOOKUP(B43,Materiales,5,FALSE),"") -> 6.5 | G43: =IF(AND(E43<>"",F43<>""),E43*F43,"") -> 6.5 | H43: =IF(B43<>"",VLOOKUP(B43,Materiales,8,FALSE),"") -> MO
A44: =IF(AND(B44<>"",B43<>""),A43+1,"") -> 4 | B44: 10 | C44: =IF(B44<>"",VLOOKUP(B44,Materiales,2,FALSE),"") -> Ayudante | D44: =IF(B44<>"",VLOOKUP(B44,Materiales,3,FALSE),"") -> Hs | E44: 0.5 | F44: =IF(B44<>"",VLOOKUP(B44,Materiales,5,FALSE),"") -> 4.5 | G44: =IF(AND(E44<>"",F44<>""),E44*F44,"") -> 2.25 | H44: =IF(B44<>"",VLOOKUP(B44,Materiales,8,FALSE),"") -> MO
C47: Costo - Costo: | G47: =IF(SUM(G41:G44)>0,SUM(G41:G44),"") -> 36.8
C48: Costo Materiales: | G48: =SUMIF(H41:H44,"=MA",G41:G44) -> 28.05
C49: Costo Mano de Obra: | G49: =SUMIF(H41:H44,"=MO",G41:G44) -> 8.75
C50: Costo de Equipos y Herramientas: | G50: =SUMIF(H41:H44,"=EH",G41:G44) -> 0
C51: Tiempo: | G51: =MAX(E43:E44) -> 1
A54: Carpeta Alisada de cemento | H54: m2
A55: Nº | B55: Código | C55: Recurso | D55: Unidad | E55: Rendimiento | F55: Precio | H55: Grupo
F56: Unitario | G56: Total
A57: =IF(B57<>"",1,"") -> 1 | B57: 1 | C57: =IF(B57<>"",VLOOKUP(B57,Materiales,2,FALSE),"") -> Arena | D57: =IF(B57<>"",VLOOKUP(B57,Materiales,3,FALSE),"") -> m3 | E57: 0.03 | F57: =IF(B57<>"",VLOOKUP(B57,Materiales,5,FALSE),"") -> 20 | G57: =IF(AND(E57<>"",F57<>""),E57*F57,"") -> 0.6 | H57: =IF(B57<>"",VLOOKUP(B57,Materiales,8,FALSE),"") -> MA
A58: =IF(AND(B58<>"",B57<>""),A57+1,"") -> 2 | B58: 2 | C58: Cemento | D58: Kg | E58: 12.5 | F58: 0.4 | G58: 5 | H58: MA
A59: =IF(AND(B59<>"",B58<>""),A58+1,"") -> 3 | B59: 3 | C59: Cal | D59: Kg | E59: 3.75 | F59: 0.34 | G59: 1.275 | H59: MA
A60: =IF(AND(B60<>"",B59<>""),A59+1,"") -> 4 | B60: 14 | C60: Enseres de Obra Indeterminados | D60: Gl | E60: 0.2 | F60: 2.5 | G60: 0.5 | H60: EH
A61: =IF(AND(B61<>"",B60<>""),A60+1,"") -> 5 | B61: 9 | C61: Oficial | D61: Hs | E61: 0.5 | F61: 6.5 | G61: 3.25 | H61: MO
A62: =IF(AND(B62<>"",B61<>""),A61+1,"") -> 6 | B62: 10 | C62: Ayudante | D62: Hs | E62: 0.5 | F62: 4.5 | G62: 2.25 | H62: MO
C65: Costo - Costo: | G65: =IF(SUM(G57:G62)>0,SUM(G57:G62),"") -> 12.875
C66: Costo Materiales: | G66: =SUMIF(H57:H62,"=MA",G57:G62) -> 6.875
C67: Costo Mano de Obra: | G67: =SUMIF(H57:H62,"=MO",G57:G62) -> 5.5
C68: Costo de Equipos y Herramientas: | G68: =SUMIF(H57:H62,"=EH",G57:G62) -> 0.5
C69: Tiempo: | G69: 0.5
A72: Revestimiento de Azulejos 15x15 | H72: m2
A73: Nº | B73: Código | C73: Recurso | D73: Unidad | E73: Rendimiento | F73: Precio | H73: Grupo
F74: Unitario | G74: Total
A75: =IF(B75<>"",1,"") -> 1 | B75: 15 | C75: =IF(B75<>"",VLOOKUP(B75,Materiales,2,FALSE),"") -> Pegamento Cerámicos | D75: =IF(B75<>"",VLOOKUP(B75,Materiales,3,FALSE),"") -> Kg | E75: 4.2 | F75: =IF(B75<>"",VLOOKUP(B75,Materiales,5,FALSE),"") -> 0.3 | G75: =IF(AND(E75<>"",F75<>""),E75*F75,"") -> 1.26 | H75: =IF(B75<>"",VLOOKUP(B75,Materiales,8,FALSE),"") -> MA
A76: =IF(AND(B76<>"",B75<>""),A75+1,"") -> 2 | B76: 29 | C76: =IF(B76<>"",VLOOKUP(B76,Materiales,2,FALSE),"") -> Pastina para Cerámicos | D76: =IF(B76<>"",VLOOKUP(B76,Materiales,3,FALSE),"") -> Kg | E76: 0.3 | F76: =IF(B76<>"",VLOOKUP(B76,Materiales,5,FALSE),"") -> 2.5 | G76: =IF(AND(E76<>"",F76<>""),E76*F76,"") -> 0.75 | H76: =IF(B76<>"",VLOOKUP(B76,Materiales,8,FALSE),"") -> MA
A77: =IF(AND(B77<>"",B76<>""),A76+1,"") -> 3 | B77: 17 | C77: =IF(B77<>"",VLOOKUP(B77,Materiales,2,FALSE),"") -> Azulejos 15 x 15 | D77: =IF(B77<>"",VLOOKUP(B77,Materiales,3,FALSE),"") -> m2 | E77: 1.05 | F77: =IF(B77<>"",VLOOKUP(B77,Materiales,5,FALSE),"") -> 15 | G77: =IF(AND(E77<>"",F77<>""),E77*F77,"") -> 15.75 | H77: =IF(B77<>"",VLOOKUP(B77,Materiales,8,FALSE),"") -> MA
A78: =IF(AND(B78<>"",B77<>""),A77+1,"") -> 4 | B78: 9 | C78: =IF(B78<>"",VLOOKUP(B78,Materiales,2,FALSE),"") -> Oficial | D78: =IF(B78<>"",VLOOKUP(B78,Materiales,3,FALSE),"") -> Hs | E78: 1.82 | F78: =IF(B78<>"",VLOOKUP(B78,Materiales,5,FALSE),"") -> 6.5 | G78: =IF(AND(E78<>"",F78<>""),E78*F78,"") -> 11.83 | H78: =IF(B78<>"",VLOOKUP(B78,Materiales,8,FALSE),"") -> MO
A79: =IF(AND(B79<>"",B78<>""),A78+1,"") -> 5 | B79: 10 | C79: =IF(B79<>"",VLOOKUP(B79,Materiales,2,FALSE),"") -> Ayudante | D79: =IF(B79<>"",VLOOKUP(B79,Materiales,3,FALSE),"") -> Hs | E79: 1.04 | F79: =IF(B79<>"",VLOOKUP(B79,Materiales,5,FALSE),"") -> 4.5 | G79: =IF(AND(E79<>"",F79<>""),E79*F79,"") -> 4.68 | H79: =IF(B79<>"",VLOOKUP(B79,Materiales,8,FALSE),"") -> MO
C82: Costo - Costo: | G82: =IF(SUM(G75:G79)>0,SUM(G75:G79),"") -> 34.27
C83: Costo Materiales: | G83: =SUMIF(H75:H79,"=MA",G75:G79) -> 17.76
C84: Costo Mano de Obra: | G84: =SUMIF(H75:H79,"=MO",G75:G79) -> 16.51
C85: Costo de Equipos y Herramientas: | G85: =SUMIF(H75:H79,"=EH",G75:G79) -> 0
C86: Tiempo: | G86: 1.82
A89: Bases | H89: m3
A90: Nº | B90: Código | C90: Recurso | D90: Unidad | E90: Rendimiento | F90: Precio | H90: Grupo
F91: Unitario | G91: Total
A92: =IF(B92<>"",1,"") -> 1 | B92: 6 | C92: =IF(B92<>"",VLOOKUP(B92,Materiales,2,FALSE),"") -> Piedra | D92: =IF(B92<>"",VLOOKUP(B92,Materiales,3,FALSE),"") -> Tn | E92: 0.65 | F92: =IF(B92<>"",VLOOKUP(B92,Materiales,5,FALSE),"") -> 25 | G92: =IF(AND(E92<>"",F92<>""),E92*F92,"") -> 16.25 | H92: =IF(B92<>"",VLOOKUP(B92,Materiales,8,FALSE),"") -> MA
A93: =IF(AND(B93<>"",B92<>""),A92+1,"") -> 2 | B93: 1 | C93: Arena | D93: m3 | E93: 0.65 | F93: 20 | G93: =IF(AND(E93<>"",F93<>""),E93*F93,"") -> 13 | H93: MA
A94: =IF(AND(B94<>"",B93<>""),A93+1,"") -> 3 | B94: 2 | C94: Cemento | D94: Kg | E94: 7 | F94: 0.4 | G94: =IF(AND(E94<>"",F94<>""),E94*F94,"") -> 2.8 | H94: MA
A95: 4 | B95: 14 | C95: Enseres de Obra Indeterminados | D95: Gl | E95: 3 | F95: 2.5 | G95: 7.5 | H95: EH
A96: 5 | B96: 19 | C96: Fe 10 | D96: Kg | E96: 60 | F96: 8 | G96: 480 | H96: MA
A97: 6 | B97: 8 | C97: Alambre | D97: Kg | E97: 0.3 | F97: 6.5 | G97: 1.95 | H97: MA
A98: 7 | B98: 9 | C98: Oficial | D98: Hs | E98: 8 | F98: 6.5 | G98: 52 | H98: MO
A99: 8 | B99: 10 | C99: Ayudante | D99: Hs | E99: 6 | F99: 4.5 | G99: 27 | H99: MO
C102: Costo - Costo: | G102: =IF(SUM(G92:G99)>0,SUM(G92:G99),"") -> 600.5
C103: Costo Materiales: | G103: =SUMIF(H92:H99,"=MA",G92:G99) -> 514
C104: Costo Mano de Obra: | G104: =SUMIF(H92:H99,"=MO",G92:G99) -> 79
C105: Costo de Equipos y Herramientas: | G105: =SUMIF(H92:H99,"=EH",G92:G99) -> 7.5
C106: Tiempo: | G106: 8
A108: Revoque Bolseado | H108: m2
A109: Nº | B109: Código | C109: Recurso | D109: Unidad | E109: Rendimiento | F109: Precio | H109: Grupo
F110: Unitario | G110: Total
A111: =IF(B111<>"",1,"") -> 1 | B111: 1 | C111: =IF(B111<>"",VLOOKUP(B111,Materiales,2,FALSE),"") -> Arena | D111: =IF(B111<>"",VLOOKUP(B111,Materiales,3,FALSE),"") -> m3 | E111: 0.02 | F111: =IF(B111<>"",VLOOKUP(B111,Materiales,5,FALSE),"") -> 20 | G111: =IF(AND(E111<>"",F111<>""),E111*F111,"") -> 0.4 | H111: =IF(B111<>"",VLOOKUP(B111,Materiales,8,FALSE),"") -> MA
A112: =IF(AND(B112<>"",B111<>""),A111+1,"") -> 2 | B112: 2 | C112: Cemento | D112: Kg | E112: 1.5 | F112: 0.4 | G112: 0.6 | H112: MA
A113: =IF(AND(B113<>"",B112<>""),A112+1,"") -> 3 | B113: 3 | C113: Cal | D113: Kg | E113: 3 | F113: 0.34 | G113: 1.02 | H113: MA
A114: =IF(AND(B114<>"",B113<>""),A113+1,"") -> 4 | B114: 14 | C114: Enseres de Obra Indeterminados | D114: Gl | E114: 0.2 | F114: 2.5 | G114: 0.5 | H114: EH
A115: =IF(AND(B115<>"",B114<>""),A114+1,"") -> 5 | B115: 9 | C115: Oficial | D115: Hs | E115: 1.2 | F115: 6.5 | G115: 7.8 | H115: MO
A116: =IF(AND(B116<>"",B115<>""),A115+1,"") -> 6 | B116: 10 | C116: Ayudante | D116: Hs | E116: 0.3 | F116: 4.5 | G116: 1.35 | H116: MO
C119: Costo - Costo: | G119: =IF(SUM(G111:G116)>0,SUM(G111:G116),"") -> 11.67
C120: Costo Materiales: | G120: =SUMIF(H111:H116,"=MA",G111:G116) -> 2.02
C121: Costo Mano de Obra: | G121: =SUMIF(H111:H116,"=MO",G111:G116) -> 9.15
C122: Costo de Equipos y Herramientas: | G122: =SUMIF(H111:H116,"=EH",G111:G116) -> 0.5
C123: Tiempo: | G123: 1.2
A126: Desmonte de Tierra Vegetal a mano | H126: m3
A127: Nº | B127: Código | C127: Recurso | D127: Unidad | E127: Rendimiento | F127: Precio | H127: Grupo
F128: Unitario | G128: Total
A129: =IF(B129<>"",1,"") -> 1 | B129: 10 | C129: =IF(B129<>"",VLOOKUP(B129,Materiales,2,FALSE),"") -> Ayudante | D129: =IF(B129<>"",VLOOKUP(B129,Materiales,3,FALSE),"") -> Hs | E129: 8 | F129: =IF(B129<>"",VLOOKUP(B129,Materiales,5,FALSE),"") -> 4.5 | G129: =IF(AND(E129<>"",F129<>""),E129*F129,"") -> 36 | H129: =IF(B129<>"",VLOOKUP(B129,Materiales,8,FALSE),"") -> MO
A130: =IF(AND(B130<>"",B129<>""),A129+1,"") -> 2 | B130: 12 | C130: =IF(B130<>"",VLOOKUP(B130,Materiales,2,FALSE),"") -> Camión | D130: =IF(B130<>"",VLOOKUP(B130,Materiales,3,FALSE),"") -> Hs | E130: 0.15 | F130: =IF(B130<>"",VLOOKUP(B130,Materiales,5,FALSE),"") -> 75 | G130: =IF(AND(E130<>"",F130<>""),E130*F130,"") -> 11.25 | H130: =IF(B130<>"",VLOOKUP(B130,Materiales,8,FALSE),"") -> EH
C133: Costo - Costo: | G133: =IF(SUM(G129:G130)>0,SUM(G129:G130),"") -> 47.25
C134: Costo Materiales: | G134: =SUMIF(H129:H130,"=MA",G129:G130) -> 0
C135: Costo Mano de Obra: | G135: =SUMIF(H129:H130,"=MO",G129:G130) -> 36
C136: Costo de Equipos y Herramientas: | G136: =SUMIF(H129:H130,"=EH",G129:G130) -> 11.25
C137: Tiempo: | G137: 8
A140: Capa aisladora horizontal en muros | H140: m2
A141: Nº | B141: Código | C141: Recurso | D141: Unidad | E141: Rendimiento | F141: Precio | H141: Grupo
F142: Unitario | G142: Total
A143: =IF(B143<>"",1,"") -> 1 | B143: 26 | C143: =IF(B143<>"",VLOOKUP(B143,Materiales,2,FALSE),"") -> Hidrófugo | D143: =IF(B143<>"",VLOOKUP(B143,Materiales,3,FALSE),"") -> Kg | E143: 1.75 | F143: =IF(B143<>"",VLOOKUP(B143,Materiales,5,FALSE),"") -> 4.5 | G143: =IF(AND(E143<>"",F143<>""),E143*F143,"") -> 7.875 | H143: =IF(B143<>"",VLOOKUP(B143,Materiales,8,FALSE),"") -> MA
A144: =IF(AND(B144<>"",B143<>""),A143+1,"") -> 2 | B144: 1 | C144: =IF(B144<>"",VLOOKUP(B144,Materiales,2,FALSE),"") -> Arena | D144: =IF(B144<>"",VLOOKUP(B144,Materiales,3,FALSE),"") -> m3 | E144: 0.03 | F144: =IF(B144<>"",VLOOKUP(B144,Materiales,5,FALSE),"") -> 20 | G144: =IF(AND(E144<>"",F144<>""),E144*F144,"") -> 0.6 | H144: =IF(B144<>"",VLOOKUP(B144,Materiales,8,FALSE),"") -> MA
A145: =IF(AND(B145<>"",B144<>""),A144+1,"") -> 3 | B145: 2 | C145: =IF(B145<>"",VLOOKUP(B145,Materiales,2,FALSE),"") -> Cemento | D145: =IF(B145<>"",VLOOKUP(B145,Materiales,3,FALSE),"") -> Kg | E145: 14.5 | F145: =IF(B145<>"",VLOOKUP(B145,Materiales,5,FALSE),"") -> 0.4 | G145: =IF(AND(E145<>"",F145<>""),E145*F145,"") -> 5.8 | H145: =IF(B145<>"",VLOOKUP(B145,Materiales,8,FALSE),"") -> MA
A146: =IF(AND(B146<>"",B145<>""),A145+1,"") -> 4 | B146: 9 | C146: =IF(B146<>"",VLOOKUP(B146,Materiales,2,FALSE),"") -> Oficial | D146: =IF(B146<>"",VLOOKUP(B146,Materiales,3,FALSE),"") -> Hs | E146: 0.75 | F146: =IF(B146<>"",VLOOKUP(B146,Materiales,5,FALSE),"") -> 6.5 | G146: =IF(AND(E146<>"",F146<>""),E146*F146,"") -> 4.875 | H146: =IF(B146<>"",VLOOKUP(B146,Materiales,8,FALSE),"") -> MO
A147: =IF(AND(B147<>"",B146<>""),A146+1,"") -> 5 | B147: 10 | C147: =IF(B147<>"",VLOOKUP(B147,Materiales,2,FALSE),"") -> Ayudante | D147: =IF(B147<>"",VLOOKUP(B147,Materiales,3,FALSE),"") -> Hs | E147: 0.5 | F147: =IF(B147<>"",VLOOKUP(B147,Materiales,5,FALSE),"") -> 4.5 | G147: =IF(AND(E147<>"",F147<>""),E147*F147,"") -> 2.25 | H147: =IF(B147<>"",VLOOKUP(B147,Materiales,8,FALSE),"") -> MO
C150: Costo - Costo: | G150: =IF(SUM(G143:G147)>0,SUM(G143:G147),"") -> 21.4
C151: Costo Materiales: | G151: =SUMIF(H143:H147,"=MA",G143:G147) -> 14.275
C152: Costo Mano de Obra: | G152: =SUMIF(H143:H147,"=MO",G143:G147) -> 7.125
C153: Costo de Equipos y Herramientas: | G153: =SUMIF(H143:H147,"=EH",G143:G147) -> 0
C154: Tiempo: | G154: 0.75
A157: Mampostería de Ladrillos Comunes en elevación - Muros Comunes | H157: m3
A158: Nº | B158: Código | C158: Recurso | D158: Unidad | E158: Rendimiento | F158: Precio | H158: Grupo
F159: Unitario | G159: Total
A160: =IF(B160<>"",1,"") -> 1 | B160: 1 | C160: =IF(B160<>"",VLOOKUP(B160,Materiales,2,FALSE),"") -> Arena | D160: =IF(B160<>"",VLOOKUP(B160,Materiales,3,FALSE),"") -> m3 | E160: 0.34 | F160: =IF(B160<>"",VLOOKUP(B160,Materiales,5,FALSE),"") -> 20 | G160: =IF(AND(E160<>"",F160<>""),E160*F160,"") -> 6.8 | H160: =IF(B160<>"",VLOOKUP(B160,Materiales,8,FALSE),"") -> MA
A161: =IF(AND(B161<>"",B160<>""),A160+1,"") -> 2 | B161: 4 | C161: =IF(B161<>"",VLOOKUP(B161,Materiales,2,FALSE),"") -> Cemento de Albañilería | D161: =IF(B161<>"",VLOOKUP(B161,Materiales,3,FALSE),"") -> Kg | E161: 110.5 | F161: =IF(B161<>"",VLOOKUP(B161,Materiales,5,FALSE),"") -> 0.34 | G161: =IF(AND(E161<>"",F161<>""),E161*F161,"") -> 37.57 | H161: =IF(B161<>"",VLOOKUP(B161,Materiales,8,FALSE),"") -> MA
A162: =IF(AND(B162<>"",B161<>""),A161+1,"") -> 3 | B162: 27 | C162: =IF(B162<>"",VLOOKUP(B162,Materiales,2,FALSE),"") -> Ladrillo común | D162: =IF(B162<>"",VLOOKUP(B162,Materiales,3,FALSE),"") -> Nº | E162: 420 | F162: =IF(B162<>"",VLOOKUP(B162,Materiales,5,FALSE),"") -> 0.4 | G162: =IF(AND(E162<>"",F162<>""),E162*F162,"") -> 168 | H162: =IF(B162<>"",VLOOKUP(B162,Materiales,8,FALSE),"") -> MA
A163: =IF(AND(B163<>"",B162<>""),A162+1,"") -> 4 | B163: 9 | C163: =IF(B163<>"",VLOOKUP(B163,Materiales,2,FALSE),"") -> Oficial | D163: =IF(B163<>"",VLOOKUP(B163,Materiales,3,FALSE),"") -> Hs | E163: 7.41 | F163: =IF(B163<>"",VLOOKUP(B163,Materiales,5,FALSE),"") -> 6.5 | G163: =IF(AND(E163<>"",F163<>""),E163*F163,"") -> 48.165 | H163: =IF(B163<>"",VLOOKUP(B163,Materiales,8,FALSE),"") -> MO
A164: =IF(AND(B164<>"",B163<>""),A163+1,"") -> 5 | B164: 10 | C164: =IF(B164<>"",VLOOKUP(B164,Materiales,2,FALSE),"") -> Ayudante | D164: =IF(B164<>"",VLOOKUP(B164,Materiales,3,FALSE),"") -> Hs | E164: 1.17 | F164: =IF(B164<>"",VLOOKUP(B164,Materiales,5,FALSE),"") -> 4.5 | G164: =IF(AND(E164<>"",F164<>""),E164*F164,"") -> 5.265 | H164: =IF(B164<>"",VLOOKUP(B164,Materiales,8,FALSE),"") -> MO
C167: Costo - Costo: | G167: =IF(SUM(G160:G164)>0,SUM(G160:G164),"") -> 265.8
C168: Costo Materiales: | G168: =SUMIF(H160:H164,"=MA",G160:G164) -> 212.37
C169: Costo Mano de Obra: | G169: =SUMIF(H160:H164,"=MO",G160:G164) -> 53.43
C170: Costo de Equipos y Herramientas: | G170: =SUMIF(H160:H164,"=EH",G160:G164) -> 0
C171: Tiempo: | G171: 7.17
A174: Replanteo y Nivelación | H174: m2
A175: Nº | B175: Código | C175: Recurso | D175: Unidad | E175: Rendimiento | F175: Precio | H175: Grupo
F176: Unitario | G176: Total
A177: =IF(B177<>"",1,"") -> 1 | B177: 14 | C177: =IF(B177<>"",VLOOKUP(B177,Materiales,2,FALSE),"") -> Enseres de Obra Indeterminados | D177: =IF(B177<>"",VLOOKUP(B177,Materiales,3,FALSE),"") -> Gl | E177: 1 | F177: =IF(B177<>"",VLOOKUP(B177,Materiales,5,FALSE),"") -> 2.5 | G177: =IF(AND(E177<>"",F177<>""),E177*F177,"") -> 2.5 | H177: =IF(B177<>"",VLOOKUP(B177,Materiales,8,FALSE),"") -> EH
A178: =IF(AND(B178<>"",B177<>""),A177+1,"") -> 2 | B178: 7 | C178: =IF(B178<>"",VLOOKUP(B178,Materiales,2,FALSE),"") -> Clavos | D178: =IF(B178<>"",VLOOKUP(B178,Materiales,3,FALSE),"") -> Kg | E178: 0.01 | F178: =IF(B178<>"",VLOOKUP(B178,Materiales,5,FALSE),"") -> 6.5 | G178: =IF(AND(E178<>"",F178<>""),E178*F178,"") -> 0.065 | H178: =IF(B178<>"",VLOOKUP(B178,Materiales,8,FALSE),"") -> MA
A179: =IF(AND(B179<>"",B178<>""),A178+1,"") -> 3 | B179: 32 | C179: =IF(B179<>"",VLOOKUP(B179,Materiales,2,FALSE),"") -> Ingeniero | D179: =IF(B179<>"",VLOOKUP(B179,Materiales,3,FALSE),"") -> Hs | E179: 0.08 | F179: =IF(B179<>"",VLOOKUP(B179,Materiales,5,FALSE),"") -> 60 | G179: =IF(AND(E179<>"",F179<>""),E179*F179,"") -> 4.8 | H179: =IF(B179<>"",VLOOKUP(B179,Materiales,8,FALSE),"") -> MO
A180: =IF(AND(B180<>"",B179<>""),A179+1,"") -> 4 | B180: 9 | C180: =IF(B180<>"",VLOOKUP(B180,Materiales,2,FALSE),"") -> Oficial | D180: =IF(B180<>"",VLOOKUP(B180,Materiales,3,FALSE),"") -> Hs | E180: 0.2 | F180: =IF(B180<>"",VLOOKUP(B180,Materiales,5,FALSE),"") -> 6.5 | G180: =IF(AND(E180<>"",F180<>""),E180*F180,"") -> 1.3 | H180: =IF(B180<>"",VLOOKUP(B180,Materiales,8,FALSE),"") -> MO
A181: =IF(AND(B181<>"",B178<>""),A178+1,"") -> 3 | B181: 10 | C181: =IF(B181<>"",VLOOKUP(B181,Materiales,2,FALSE),"") -> Ayudante | D181: =IF(B181<>"",VLOOKUP(B181,Materiales,3,FALSE),"") -> Hs | E181: 0.4 | F181: =IF(B181<>"",VLOOKUP(B181,Materiales,5,FALSE),"") -> 4.5 | G181: =IF(AND(E181<>"",F181<>""),E181*F181,"") -> 1.8 | H181: =IF(B181<>"",VLOOKUP(B181,Materiales,8,FALSE),"") -> MO
C184: Costo - Costo: | G184: =IF(SUM(G177:G181)>0,SUM(G177:G181),"") -> 10.465
C185: Costo Materiales: | G185: =SUMIF(H177:H181,"=MA",G177:G181) -> 0.065
C186: Costo Mano de Obra: | G186: =SUMIF(H177:H181,"=MO",G177:G181) -> 7.9
C187: Costo de Equipos y Herramientas: | G187: =SUMIF(H177:H181,"=EH",G177:G181) -> 2.5
C188: Tiempo: | G188: =AVERAGE(E179:E181) -> 0.2266666667
A191: Pintura al látex acrílico | H191: m2
A192: Nº | B192: Código | C192: Recurso | D192: Unidad | E192: Rendimiento | F192: Precio | H192: Grupo
F193: Unitario | G193: Total
A194: =IF(B194<>"",1,"") -> 1 | B194: 34 | C194: =IF(B194<>"",VLOOKUP(B194,Materiales,2,FALSE),"") -> Subcontrato Materiales Pintura | D194: =IF(B194<>"",VLOOKUP(B194,Materiales,3,FALSE),"") -> Gl | E194: 2.6 | F194: =IF(B194<>"",VLOOKUP(B194,Materiales,5,FALSE),"") -> 3 | G194: =IF(AND(E194<>"",F194<>""),E194*F194,"") -> 7.8 | H194: =IF(B194<>"",VLOOKUP(B194,Materiales,8,FALSE),"") -> MA
A195: =IF(AND(B195<>"",B194<>""),A194+1,"") -> 2 | B195: 33 | C195: =IF(B195<>"",VLOOKUP(B195,Materiales,2,FALSE),"") -> Subcontrato Mano de Obra Pintura | D195: =IF(B195<>"",VLOOKUP(B195,Materiales,3,FALSE),"") -> Gl | E195: 1.9 | F195: =IF(B195<>"",VLOOKUP(B195,Materiales,5,FALSE),"") -> 5 | G195: =IF(AND(E195<>"",F195<>""),E195*F195,"") -> 9.5 | H195: =IF(B195<>"",VLOOKUP(B195,Materiales,8,FALSE),"") -> MO
C198: Costo - Costo: | G198: =IF(SUM(G194:G195)>0,SUM(G194:G195),"") -> 17.3
C199: Costo Materiales: | G199: =SUMIF(H194:H195,"=MA",G194:G195) -> 7.8
C200: Costo Mano de Obra: | G200: =SUMIF(H194:H195,"=MO",G194:G195) -> 9.5
C201: Costo de Equipos y Herramientas: | G201: =SUMIF(H194:H195,"=EH",G194:G195) -> 0
C202: Tiempo: | G202: 2
A205: Viga de encadenado superior 20x30 | H205: ml
A206: Nº | B206: Código | C206: Recurso | D206: Unidad | E206: Rendimiento | F206: Precio | H206: Grupo
F207: Unitario | G207: Total
A208: =IF(B208<>"",1,"") -> 1 | B208: 6 | C208: =IF(B208<>"",VLOOKUP(B208,Materiales,2,FALSE),"") -> Piedra | D208: =IF(B208<>"",VLOOKUP(B208,Materiales,3,FALSE),"") -> Tn | E208: 0.39 | F208: =IF(B208<>"",VLOOKUP(B208,Materiales,5,FALSE),"") -> 25 | G208: =IF(AND(E208<>"",F208<>""),E208*F208,"") -> 9.75 | H208: =IF(B208<>"",VLOOKUP(B208,Materiales,8,FALSE),"") -> MA
A209: =IF(AND(B209<>"",B208<>""),A208+1,"") -> 2 | B209: 1 | C209: Arena | D209: m3 | E209: 0.39 | F209: 20 | G209: =IF(AND(E209<>"",F209<>""),E209*F209,"") -> 7.8 | H209: MA
A210: =IF(AND(B210<>"",B209<>""),A209+1,"") -> 3 | B210: 2 | C210: Cemento | D210: Kg | E210: 21 | F210: 0.4 | G210: =IF(AND(E210<>"",F210<>""),E210*F210,"") -> 8.4 | H210: MA
A211: 4 | B211: 14 | C211: Enseres de Obra Indeterminados | D211: Gl | E211: 1 | F211: 2.5 | G211: 2.5 | H211: EH
A212: 5 | B212: 35 | C212: Fe 8 | D212: Kg | E212: 2 | F212: 6 | G212: 12 | H212: MA
A213: 6 | B213: 36 | C213: Fe 4,2 | D213: Kg | E213: 1 | F213: 5 | G213: 5 | H213: MA
A214: 7 | B214: 7 | C214: Clavos | D214: Kg | E214: 0.02 | F214: 6.5 | G214: 0.13 | H214: MA
A215: 8 | B215: 8 | C215: Alambre | D215: Kg | E215: 0.02 | F215: 6.5 | G215: 0.13 | H215: MA
A216: 9 | B216: 9 | C216: Oficial | D216: Hs | E216: 1.5 | F216: 6.5 | G216: 9.75 | H216: MO
A217: =IF(AND(B217<>"",B209<>""),A209+1,"") -> 3 | B217: 10 | C217: Ayudante | D217: Hs | E217: 1.8 | F217: 4.5 | G217: =IF(AND(E217<>"",F217<>""),E217*F217,"") -> 8.1 | H217: MO
C220: Costo - Costo: | G220: =IF(SUM(G208:G217)>0,SUM(G208:G217),"") -> 63.56
C221: Costo Materiales: | G221: =SUMIF(H208:H217,"=MA",G208:G217) -> 43.21
C222: Costo Mano de Obra: | G222: =SUMIF(H208:H217,"=MO",G208:G217) -> 17.85
C223: Costo de Equipos y Herramientas: | G223: =SUMIF(H208:H217,"=EH",G208:G217) -> 2.5
C224: Tiempo: | G224: 1.8
A226: Mortero para losa | H226: m3
A227: Nº | B227: Código | C227: Recurso | D227: Unidad | E227: Rendimiento | F227: Precio | H227: Grupo
F228: Unitario | G228: Total
A229: =IF(B229<>"",1,"") -> 1 | B229: 2 | C229: =IF(B229<>"",VLOOKUP(B229,Materiales,2,FALSE),"") -> Cemento | D229: =IF(B229<>"",VLOOKUP(B229,Materiales,3,FALSE),"") -> Kg | E229: 350 | F229: =IF(B229<>"",VLOOKUP(B229,Materiales,5,FALSE),"") -> 0.4 | G229: =IF(AND(E229<>"",F229<>""),E229*F229,"") -> 140 | H229: =IF(B229<>"",VLOOKUP(B229,Materiales,8,FALSE),"") -> MA
A230: =IF(AND(B230<>"",B229<>""),A229+1,"") -> 2 | B230: 6 | C230: =IF(B230<>"",VLOOKUP(B230,Materiales,2,FALSE),"") -> Piedra | D230: =IF(B230<>"",VLOOKUP(B230,Materiales,3,FALSE),"") -> Tn | E230: 0.67 | F230: =IF(B230<>"",VLOOKUP(B230,Materiales,5,FALSE),"") -> 25 | G230: =IF(AND(E230<>"",F230<>""),E230*F230,"") -> 16.75 | H230: =IF(B230<>"",VLOOKUP(B230,Materiales,8,FALSE),"") -> MA
A231: =IF(AND(B231<>"",B230<>""),A230+1,"") -> 3 | B231: 1 | C231: =IF(B231<>"",VLOOKUP(B231,Materiales,2,FALSE),"") -> Arena | D231: =IF(B231<>"",VLOOKUP(B231,Materiales,3,FALSE),"") -> m3 | E231: 0.67 | F231: =IF(B231<>"",VLOOKUP(B231,Materiales,5,FALSE),"") -> 20 | G231: =IF(AND(E231<>"",F231<>""),E231*F231,"") -> 13.4 | H231: =IF(B231<>"",VLOOKUP(B231,Materiales,8,FALSE),"") -> MA
A232: =IF(AND(B232<>"",B231<>""),A231+1,"") -> 4 | B232: 9 | C232: =IF(B232<>"",VLOOKUP(B232,Materiales,2,FALSE),"") -> Oficial | D232: =IF(B232<>"",VLOOKUP(B232,Materiales,3,FALSE),"") -> Hs | E232: 2.5 | F232: =IF(B232<>"",VLOOKUP(B232,Materiales,5,FALSE),"") -> 6.5 | G232: =IF(AND(E232<>"",F232<>""),E232*F232,"") -> 16.25 | H232: =IF(B232<>"",VLOOKUP(B232,Materiales,8,FALSE),"") -> MO
A233: =IF(AND(B233<>"",B230<>""),A230+1,"") -> 3 | B233: 10 | C233: =IF(B233<>"",VLOOKUP(B233,Materiales,2,FALSE),"") -> Ayudante | D233: =IF(B233<>"",VLOOKUP(B233,Materiales,3,FALSE),"") -> Hs | E233: 3 | F233: =IF(B233<>"",VLOOKUP(B233,Materiales,5,FALSE),"") -> 4.5 | G233: =IF(AND(E233<>"",F233<>""),E233*F233,"") -> 13.5 | H233: =IF(B233<>"",VLOOKUP(B233,Materiales,8,FALSE),"") -> MO
C236: Costo - Costo: | G236: =IF(SUM(G229:G233)>0,SUM(G229:G233),"") -> 199.9
C237: Costo Materiales: | G237: =SUMIF(H229:H233,"=MA",G229:G233) -> 170.15
C238: Costo Mano de Obra: | G238: =SUMIF(H229:H233,"=MO",G229:G233) -> 29.75
C239: Costo de Equipos y Herramientas: | G239: =SUMIF(H229:H233,"=EH",G229:G233) -> 0
C240: Tiempo: | G240: 2
A242: Zapata Corrida | H242: m3
A243: Nº | B243: Código | C243: Recurso | D243: Unidad | E243: Rendimiento | F243: Precio | H243: Grupo
F244: Unitario | G244: Total
A245: =IF(B245<>"",1,"") -> 1 | B245: 1 | C245: =IF(B245<>"",VLOOKUP(B245,Materiales,2,FALSE),"") -> Arena | D245: =IF(B245<>"",VLOOKUP(B245,Materiales,3,FALSE),"") -> m3 | E245: 0.65 | F245: =IF(B245<>"",VLOOKUP(B245,Materiales,5,FALSE),"") -> 20 | G245: =IF(AND(E245<>"",F245<>""),E245*F245,"") -> 13 | H245: =IF(B245<>"",VLOOKUP(B245,Materiales,8,FALSE),"") -> MA
A246: =IF(AND(B246<>"",B245<>""),A245+1,"") -> 2 | B246: 6 | C246: Piedra | D246: Tn | E246: 0.65 | F246: 25 | G246: =IF(AND(E246<>"",F246<>""),E246*F246,"") -> 16.25 | H246: MA
A247: =IF(AND(B247<>"",B246<>""),A246+1,"") -> 3 | B247: 5 | C247: Hierro | D247: Kg | E247: 100 | F247: 8 | G247: =IF(AND(E247<>"",F247<>""),E247*F247,"") -> 800 | H247: MA
A248: 4 | B248: 2 | C248: Cemento | D248: Kg | E248: 200 | F248: 0.4 | G248: 80 | H248: MA
A249: 5 | B249: 7 | C249: Clavos | D249: Kg | E249: 0.5 | F249: 6.5 | G249: 3.25 | H249: MA
A250: 6 | B250: 8 | C250: Alambre | D250: Kg | E250: 0.5 | F250: 6.5 | G250: 3.25 | H250: MA
A251: 7 | B251: 37 | C251: Madera | D251: m2 | E251: 0.5 | F251: 25 | G251: =IF(AND(E251<>"",F251<>""),E251*F251,"") -> 12.5 | H251: MA
A252: 8 | B252: 9 | C252: Oficial | D252: Hs | E252: 3.5 | F252: 6.5 | G252: 22.75 | H252: MO
A253: 9 | B253: 10 | C253: Ayudante | D253: Hs | E253: 2 | F253: 4.5 | G253: =IF(AND(E253<>"",F253<>""),E253*F253,"") -> 9 | H253: MO
... 5 more rows

Sheet Resumen
A1: Código | B1: Tarea | C1: Unidad | D1: Materiales | E1: Mano de Obra | F1: Herramientas y Equipos | G1: Total | H1: Tiempo Unitario
A2: =IF(B2<>"",1,"") -> 1 | B2: =Fórmulas!A3 -> Mampostería de Ladrillos Comunes en Recalce de Muros | C2: =Fórmulas!H3 -> m3 | D2: =Fórmulas!G15 -> 235.2 | E2: =Fórmulas!G16 -> 93.75 | F2: =Fórmulas!G17 -> 2.5 | G2: =Fórmulas!G14 -> 331.45 | H2: =Fórmulas!G18 -> 10
A3: =IF(AND(B2<>"",B3<>""),A2+1,"") -> 2 | B3: =Fórmulas!A21 -> Mampostería de Ladrillos Comunes en Elevación | C3: =Fórmulas!H21 -> m3 | D3: =Fórmulas!G33 -> 182.82 | E3: =Fórmulas!G34 -> 69.55 | F3: =Fórmulas!G35 -> 3.75 | G3: =Fórmulas!G32 -> 256.12 | H3: =Fórmulas!G36 -> 6.5
A4: =IF(AND(B3<>"",B4<>""),A3+1,"") -> 3 | B4: =Fórmulas!A38 -> Piso de Adoquines | C4: =Fórmulas!H38 -> m2 | D4: =Fórmulas!G48 -> 28.05 | E4: =Fórmulas!G49 -> 8.75 | F4: =Fórmulas!G50 -> 0 | G4: =Fórmulas!G47 -> 36.8 | H4: =Fórmulas!G51 -> 1
A5: 4 | B5: =Fórmulas!A54 -> Carpeta Alisada de cemento | C5: =Fórmulas!H54 -> m2 | D5: =Fórmulas!G66 -> 6.875 | E5: =Fórmulas!G67 -> 5.5 | F5: =Fórmulas!G68 -> 0.5 | G5: =Fórmulas!G65 -> 12.875 | H5: =Fórmulas!G69 -> 0.5
A6: 5 | B6: =Fórmulas!A72 -> Revestimiento de Azulejos 15x15 | C6: =Fórmulas!H72 -> m2 | D6: =Fórmulas!G83 -> 17.76 | E6: =Fórmulas!G84 -> 16.51 | F6: =Fórmulas!G85 -> 0 | G6: =Fórmulas!G82 -> 34.27 | H6: =Fórmulas!G86 -> 1.82
A7: 6 | B7: =Fórmulas!A89 -> Bases | C7: =Fórmulas!H89 -> m3 | D7: =Fórmulas!G103 -> 514 | E7: =Fórmulas!G104 -> 79 | F7: =Fórmulas!G105 -> 7.5 | G7: =Fórmulas!G102 -> 600.5 | H7: =Fórmulas!G106 -> 8
A8: 7 | B8: =Fórmulas!A108 -> Revoque Bolseado | C8: =Fórmulas!H108 -> m2 | D8: =Fórmulas!G120 -> 2.02 | E8: =Fórmulas!G121 -> 9.15 | F8: =Fórmulas!G122 -> 0.5 | G8: =Fórmulas!G119 -> 11.67 | H8: =Fórmulas!G123 -> 1.2
A9: 8 | B9: =Fórmulas!A126 -> Desmonte de Tierra Vegetal a mano | C9: =Fórmulas!H126 -> m3 | D9: =Fórmulas!G134 -> 0 | E9: =Fórmulas!G135 -> 36 | F9: =Fórmulas!G136 -> 11.25 | G9: =Fórmulas!G133 -> 47.25 | H9: =Fórmulas!G137 -> 8
A10: 9 | B10: =Fórmulas!A140 -> Capa aisladora horizontal en muros | C10: =Fórmulas!H140 -> m2 | D10: =Fórmulas!G151 -> 14.275 | E10: =Fórmulas!G152 -> 7.125 | F10: =Fórmulas!G153 -> 0 | G10: =Fórmulas!G150 -> 21.4 | H10: =Fórmulas!G154 -> 0.75
A11: 10 | B11: =Fórmulas!A157 -> Mampostería de Ladrillos Comunes en elevación - Muros Comunes | C11: =Fórmulas!H157 -> m3 | D11: =Fórmulas!G168 -> 212.37 | E11: =Fórmulas!G169 -> 53.43 | F11: =Fórmulas!G170 -> 0 | G11: =Fórmulas!G167 -> 265.8 | H11: =Fórmulas!G171 -> 7.17
A12: 11 | B12: =Fórmulas!A174 -> Replanteo y Nivelación | C12: =Fórmulas!H174 -> m2 | D12: =Fórmulas!G185 -> 0.065 | E12: =Fórmulas!G186 -> 7.9 | F12: =Fórmulas!G187 -> 2.5 | G12: =Fórmulas!G184 -> 10.465 | H12: =Fórmulas!G188 -> 0.2266666667
A13: 12 | B13: =Fórmulas!A191 -> Pintura al látex acrílico | C13: =Fórmulas!H191 -> m2 | D13: =Fórmulas!G199 -> 7.8 | E13: =Fórmulas!G200 -> 9.5 | F13: =Fórmulas!G201 -> 0 | G13: =Fórmulas!G198 -> 17.3 | H13: =Fórmulas!G202 -> 2
A14: 13 | B14: =Fórmulas!A205 -> Viga de encadenado superior 20x30 | C14: =Fórmulas!H205 -> ml | D14: =Fórmulas!G221 -> 43.21 | E14: =Fórmulas!G222 -> 17.85 | F14: =Fórmulas!G223 -> 2.5 | G14: =Fórmulas!G220 -> 63.56 | H14: =Fórmulas!G224 -> 1.8
A15: 14 | B15: =Fórmulas!A226 -> Mortero para losa | C15: =Fórmulas!H226 -> m3 | D15: =Fórmulas!G237 -> 170.15 | E15: =Fórmulas!G238 -> 29.75 | F15: =Fórmulas!G239 -> 0 | G15: =Fórmulas!G236 -> 199.9 | H15: =Fórmulas!G240 -> 2
A16: 15 | B16: =Fórmulas!A242 -> Zapata Corrida | C16: =Fórmulas!H242 -> m3 | D16: =Fórmulas!G257 -> 928.25 | E16: =Fórmulas!G258 -> 31.75 | F16: =Fórmulas!G259 -> 0 | G16: =Fórmulas!G256 -> 960 | H16: =Fórmulas!G260 -> 3.5
A68: =IF(AND(B67<>"",B68<>""),A67+1,"") -> 
A132: =IF(AND(B131<>"",B132<>""),A131+1,"") -> 
A196: =IF(AND(B195<>"",B196<>""),A195+1,"") -> 
A260: =IF(AND(B259<>"",B260<>""),A259+1,"") -> 
A324: =IF(AND(B323<>"",B324<>""),A323+1,"") -> 
A388: =IF(AND(B387<>"",B388<>""),A387+1,"") -> 
A452: =IF(AND(B451<>"",B452<>""),A451+1,"") -> 
A516: =IF(AND(B515<>"",B516<>""),A515+1,"") -> 
A580: =IF(AND(B579<>"",B580<>""),A579+1,"") -> 
A644: =IF(AND(B643<>"",B644<>""),A643+1,"") -> 
A708: =IF(AND(B707<>"",B708<>""),A707+1,"") -> 
A772: =IF(AND(B771<>"",B772<>""),A771+1,"") -> 
A836: =IF(AND(B835<>"",B836<>""),A835+1,"") -> 
A900: =IF(AND(B899<>"",B900<>""),A899+1,"") -> 
A964: =IF(AND(B963<>"",B964<>""),A963+1,"") -> 
A1028: =IF(AND(B1027<>"",B1028<>""),A1027+1,"") -> 
A1092: =IF(AND(B1091<>"",B1092<>""),A1091+1,"") -> 
A1156: =IF(AND(B1155<>"",B1156<>""),A1155+1,"") -> 
A1220: =IF(AND(B1219<>"",B1220<>""),A1219+1,"") -> 
A1284: =IF(AND(B1283<>"",B1284<>""),A1283+1,"") -> 
A1348: =IF(AND(B1347<>"",B1348<>""),A1347+1,"") -> 
A1412: =IF(AND(B1411<>"",B1412<>""),A1411+1,"") -> 
A1476: =IF(AND(B1475<>"",B1476<>""),A1475+1,"") -> 
A1540: =IF(AND(B1539<>"",B1540<>""),A1539+1,"") -> 
A1604: =IF(AND(B1603<>"",B1604<>""),A1603+1,"") -> 
A1668: =IF(AND(B1667<>"",B1668<>""),A1667+1,"") -> 
A1732: =IF(AND(B1731<>"",B1732<>""),A1731+1,"") -> 
A1796: =IF(AND(B1795<>"",B1796<>""),A1795+1,"") -> 
A1860: =IF(AND(B1859<>"",B1860<>""),A1859+1,"") -> 
A1924: =IF(AND(B1923<>"",B1924<>""),A1923+1,"") -> 
A1988: =IF(AND(B1987<>"",B1988<>""),A1987+1,"") -> 
A2052: =IF(AND(B2051<>"",B2052<>""),A2051+1,"") -> 
A2116: =IF(AND(B2115<>"",B2116<>""),A2115+1,"") -> 
A2180: =IF(AND(B2179<>"",B2180<>""),A2179+1,"") -> 
A2244: =IF(AND(B2243<>"",B2244<>""),A2243+1,"") -> 
A2308: =IF(AND(B2307<>"",B2308<>""),A2307+1,"") -> 
A2372: =IF(AND(B2371<>"",B2372<>""),A2371+1,"") -> 
A2436: =IF(AND(B2435<>"",B2436<>""),A2435+1,"") -> 
A2500: =IF(AND(B2499<>"",B2500<>""),A2499+1,"") -> 
A2564: =IF(AND(B2563<>"",B2564<>""),A2563+1,"") -> 
A2628: =IF(AND(B2627<>"",B2628<>""),A2627+1,"") -> 
A2692: =IF(AND(B2691<>"",B2692<>""),A2691+1,"") -> 
A2756: =IF(AND(B2755<>"",B2756<>""),A2755+1,"") -> 
A2820: =IF(AND(B2819<>"",B2820<>""),A2819+1,"") -> 
A2884: =IF(AND(B2883<>"",B2884<>""),A2883+1,"") -> 
A2948: =IF(AND(B2947<>"",B2948<>""),A2947+1,"") -> 
A3012: =IF(AND(B3011<>"",B3012<>""),A3011+1,"") -> 
A3076: =IF(AND(B3075<>"",B3076<>""),A3075+1,"") -> 
A3140: =IF(AND(B3139<>"",B3140<>""),A3139+1,"") -> 
A3204: =IF(AND(B3203<>"",B3204<>""),A3203+1,"") -> 
A3268: =IF(AND(B3267<>"",B3268<>""),A3267+1,"") -> 
A3332: =IF(AND(B3331<>"",B3332<>""),A3331+1,"") -> 
A3396: =IF(AND(B3395<>"",B3396<>""),A3395+1,"") -> 
A3460: =IF(AND(B3459<>"",B3460<>""),A3459+1,"") -> 
A3524: =IF(AND(B3523<>"",B3524<>""),A3523+1,"") -> 
A3588: =IF(AND(B3587<>"",B3588<>""),A3587+1,"") -> 
A3652: =IF(AND(B3651<>"",B3652<>""),A3651+1,"") -> 
A3716: =IF(AND(B3715<>"",B3716<>""),A3715+1,"") -> 
A3780: =IF(AND(B3779<>"",B3780<>""),A3779+1,"") -> 
A3844: =IF(AND(B3843<>"",B3844<>""),A3843+1,"") -> 
A3908: =IF(AND(B3907<>"",B3908<>""),A3907+1,"") -> 
A3972: =IF(AND(B3971<>"",B3972<>""),A3971+1,"") -> 
A4036: =IF(AND(B4035<>"",B4036<>""),A4035+1,"") -> 
A4100: =IF(AND(B4099<>"",B4100<>""),A4099+1,"") -> 
A4164: =IF(AND(B4163<>"",B4164<>""),A4163+1,"") -> 
A4228: =IF(AND(B4227<>"",B4228<>""),A4227+1,"") -> 
A4292: =IF(AND(B4291<>"",B4292<>""),A4291+1,"") -> 
A4356: =IF(AND(B4355<>"",B4356<>""),A4355+1,"") -> 
A4420: =IF(AND(B4419<>"",B4420<>""),A4419+1,"") -> 
A4484: =IF(AND(B4483<>"",B4484<>""),A4483+1,"") -> 
A4548: =IF(AND(B4547<>"",B4548<>""),A4547+1,"") -> 
A4612: =IF(AND(B4611<>"",B4612<>""),A4611+1,"") -> 
A4676: =IF(AND(B4675<>"",B4676<>""),A4675+1,"") -> 
A4740: =IF(AND(B4739<>"",B4740<>""),A4739+1,"") -> 
A4804: =IF(AND(B4803<>"",B4804<>""),A4803+1,"") -> 
A4868: =IF(AND(B4867<>"",B4868<>""),A4867+1,"") -> 
A4932: =IF(AND(B4931<>"",B4932<>""),A4931+1,"") -> 
A4996: =IF(AND(B4995<>"",B4996<>""),A4995+1,"") -> 
A5060: =IF(AND(B5059<>"",B5060<>""),A5059+1,"") -> 
A5124: =IF(AND(B5123<>"",B5124<>""),A5123+1,"") -> 
A5188: =IF(AND(B5187<>"",B5188<>""),A5187+1,"") -> 
A5252: =IF(AND(B5251<>"",B5252<>""),A5251+1,"") -> 
A5316: =IF(AND(B5315<>"",B5316<>""),A5315+1,"") -> 
A5380: =IF(AND(B5379<>"",B5380<>""),A5379+1,"") -> 
A5444: =IF(AND(B5443<>"",B5444<>""),A5443+1,"") -> 
A5508: =IF(AND(B5507<>"",B5508<>""),A5507+1,"") -> 
A5572: =IF(AND(B5571<>"",B5572<>""),A5571+1,"") -> 
A5636: =IF(AND(B5635<>"",B5636<>""),A5635+1,"") -> 
A5700: =IF(AND(B5699<>"",B5700<>""),A5699+1,"") -> 
A5764: =IF(AND(B5763<>"",B5764<>""),A5763+1,"") -> 
A5828: =IF(AND(B5827<>"",B5828<>""),A5827+1,"") -> 
A5892: =IF(AND(B5891<>"",B5892<>""),A5891+1,"") -> 
A5956: =IF(AND(B5955<>"",B5956<>""),A5955+1,"") -> 
A6020: =IF(AND(B6019<>"",B6020<>""),A6019+1,"") -> 
A6084: =IF(AND(B6083<>"",B6084<>""),A6083+1,"") -> 
A6148: =IF(AND(B6147<>"",B6148<>""),A6147+1,"") -> 
A6212: =IF(AND(B6211<>"",B6212<>""),A6211+1,"") -> 
A6276: =IF(AND(B6275<>"",B6276<>""),A6275+1,"") -> 
A6340: =IF(AND(B6339<>"",B6340<>""),A6339+1,"") -> 
A6404: =IF(AND(B6403<>"",B6404<>""),A6403+1,"") -> 
A6468: =IF(AND(B6467<>"",B6468<>""),A6467+1,"") -> 
A6532: =IF(AND(B6531<>"",B6532<>""),A6531+1,"") -> 
A6596: =IF(AND(B6595<>"",B6596<>""),A6595+1,"") -> 
A6660: =IF(AND(B6659<>"",B6660<>""),A6659+1,"") -> 
A6724: =IF(AND(B6723<>"",B6724<>""),A6723+1,"") -> 
A6788: =IF(AND(B6787<>"",B6788<>""),A6787+1,"") -> 
A6852: =IF(AND(B6851<>"",B6852<>""),A6851+1,"") -> 
A6916: =IF(AND(B6915<>"",B6916<>""),A6915+1,"") -> 
A6980: =IF(AND(B6979<>"",B6980<>""),A6979+1,"") -> 
A7044: =IF(AND(B7043<>"",B7044<>""),A7043+1,"") -> 
A7108: =IF(AND(B7107<>"",B7108<>""),A7107+1,"") -> 
A7172: =IF(AND(B7171<>"",B7172<>""),A7171+1,"") -> 
A7236: =IF(AND(B7235<>"",B7236<>""),A7235+1,"") -> 
A7300: =IF(AND(B7299<>"",B7300<>""),A7299+1,"") -> 
A7364: =IF(AND(B7363<>"",B7364<>""),A7363+1,"") -> 
A7428: =IF(AND(B7427<>"",B7428<>""),A7427+1,"") -> 
A7492: =IF(AND(B7491<>"",B7492<>""),A7491+1,"") -> 
A7556: =IF(AND(B7555<>"",B7556<>""),A7555+1,"") -> 
A7620: =IF(AND(B7619<>"",B7620<>""),A7619+1,"") -> 
A7684: =IF(AND(B7683<>"",B7684<>""),A7683+1,"") -> 
A7748: =IF(AND(B7747<>"",B7748<>""),A7747+1,"") -> 
A7812: =IF(AND(B7811<>"",B7812<>""),A7811+1,"") -> 
A7876: =IF(AND(B7875<>"",B7876<>""),A7875+1,"") -> 
A7940: =IF(AND(B7939<>"",B7940<>""),A7939+1,"") -> 
A8004: =IF(AND(B8003<>"",B8004<>""),A8003+1,"") -> 
A8068: =IF(AND(B8067<>"",B8068<>""),A8067+1,"") -> 
A8132: =IF(AND(B8131<>"",B8132<>""),A8131+1,"") -> 
A8196: =IF(AND(B8195<>"",B8196<>""),A8195+1,"") -> 
A8260: =IF(AND(B8259<>"",B8260<>""),A8259+1,"") -> 
A8324: =IF(AND(B8323<>"",B8324<>""),A8323+1,"") -> 
A8388: =IF(AND(B8387<>"",B8388<>""),A8387+1,"") -> 
A8452: =IF(AND(B8451<>"",B8452<>""),A8451+1,"") -> 
A8516: =IF(AND(B8515<>"",B8516<>""),A8515+1,"") -> 
A8580: =IF(AND(B8579<>"",B8580<>""),A8579+1,"") -> 
A8644: =IF(AND(B8643<>"",B8644<>""),A8643+1,"") -> 
A8708: =IF(AND(B8707<>"",B8708<>""),A8707+1,"") -> 
A8772: =IF(AND(B8771<>"",B8772<>""),A8771+1,"") -> 
A8836: =IF(AND(B8835<>"",B8836<>""),A8835+1,"") -> 
A8900: =IF(AND(B8899<>"",B8900<>""),A8899+1,"") -> 
A8964: =IF(AND(B8963<>"",B8964<>""),A8963+1,"") -> 
A9028: =IF(AND(B9027<>"",B9028<>""),A9027+1,"") -> 
A9092: =IF(AND(B9091<>"",B9092<>""),A9091+1,"") -> 
A9156: =IF(AND(B9155<>"",B9156<>""),A9155+1,"") -> 
A9220: =IF(AND(B9219<>"",B9220<>""),A9219+1,"") -> 
A9284: =IF(AND(B9283<>"",B9284<>""),A9283+1,"") -> 
A9348: =IF(AND(B9347<>"",B9348<>""),A9347+1,"") -> 
A9412: =IF(AND(B9411<>"",B9412<>""),A9411+1,"") -> 
A9476: =IF(AND(B9475<>"",B9476<>""),A9475+1,"") -> 
A9540: =IF(AND(B9539<>"",B9540<>""),A9539+1,"") -> 
A9604: =IF(AND(B9603<>"",B9604<>""),A9603+1,"") -> 
A9668: =IF(AND(B9667<>"",B9668<>""),A9667+1,"") -> 
A9732: =IF(AND(B9731<>"",B9732<>""),A9731+1,"") -> 
A9796: =IF(AND(B9795<>"",B9796<>""),A9795+1,"") -> 
A9860: =IF(AND(B9859<>"",B9860<>""),A9859+1,"") -> 
A9924: =IF(AND(B9923<>"",B9924<>""),A9923+1,"") -> 
A9988: =IF(AND(B9987<>"",B9988<>""),A9987+1,"") -> 
A10052: =IF(AND(B10051<>"",B10052<>""),A10051+1,"") -> 
A10116: =IF(AND(B10115<>"",B10116<>""),A10115+1,"") -> 
A10180: =IF(AND(B10179<>"",B10180<>""),A10179+1,"") -> 
A10244: =IF(AND(B10243<>"",B10244<>""),A10243+1,"") -> 
A10308: =IF(AND(B10307<>"",B10308<>""),A10307+1,"") -> 
A10372: =IF(AND(B10371<>"",B10372<>""),A10371+1,"") -> 
A10436: =IF(AND(B10435<>"",B10436<>""),A10435+1,"") -> 
A10500: =IF(AND(B10499<>"",B10500<>""),A10499+1,"") -> 
A10564: =IF(AND(B10563<>"",B10564<>""),A10563+1,"") -> 
A10628: =IF(AND(B10627<>"",B10628<>""),A10627+1,"") -> 
A10692: =IF(AND(B10691<>"",B10692<>""),A10691+1,"") -> 
A10756: =IF(AND(B10755<>"",B10756<>""),A10755+1,"") -> 
A10820: =IF(AND(B10819<>"",B10820<>""),A10819+1,"") -> 
A10884: =IF(AND(B10883<>"",B10884<>""),A10883+1,"") -> 
A10948: =IF(AND(B10947<>"",B10948<>""),A10947+1,"") -> 
A11012: =IF(AND(B11011<>"",B11012<>""),A11011+1,"") -> 
A11076: =IF(AND(B11075<>"",B11076<>""),A11075+1,"") -> 
A11140: =IF(AND(B11139<>"",B11140<>""),A11139+1,"") -> 
A11204: =IF(AND(B11203<>"",B11204<>""),A11203+1,"") -> 
A11268: =IF(AND(B11267<>"",B11268<>""),A11267+1,"") -> 
A11332: =IF(AND(B11331<>"",B11332<>""),A11331+1,"") -> 
A11396: =IF(AND(B11395<>"",B11396<>""),A11395+1,"") -> 
A11460: =IF(AND(B11459<>"",B11460<>""),A11459+1,"") -> 
A11524: =IF(AND(B11523<>"",B11524<>""),A11523+1,"") -> 
A11588: =IF(AND(B11587<>"",B11588<>""),A11587+1,"") -> 
A11652: =IF(AND(B11651<>"",B11652<>""),A11651+1,"") -> 
A11716: =IF(AND(B11715<>"",B11716<>""),A11715+1,"") -> 
A11780: =IF(AND(B11779<>"",B11780<>""),A11779+1,"") -> 
... 839 more rows

Sheet Presupuestación
U1: Jornada Laboral | V1: 9 | Y1: =A18 -> 0
A3: Nº Item | B3: Código | C3: Tarea | D3: Unidad | E3: Cantidad | F3: Costo | M3: % Incidencia | R3: Tiempo Unitario (Hs) | S3: Nº Equipos | T3: Tiempo Total (Hs) | U3: Tiempo Total (Días) | V3: % Incidencia
F4: Unitario Tarea | G4: Materiales | H4: Mano de Obra | I4: Herramientas y Equipos | J4: Total Tarea | K4: Total Rubro | M4: Materiales | N4: Mano de Obra | O4: Herramientas y Equipos | P4: Total
C5: =IF(B5<>"",VLOOKUP(B5,Fórmulas,2,FALSE),"") ->  | D5: =IF(B5<>"",VLOOKUP(B5,Fórmulas,3,FALSE),"") ->  | F5: =IF(AND(B5<>"",ISNUMBER(E5)),VLOOKUP(B5,Fórmulas,7,FALSE),"") ->  | G5: =IF(AND(B5<>"",ISNUMBER(E5)),VLOOKUP(B5,Fórmulas,4,FALSE)*E5,"") ->  | H5: =IF(AND(B5<>"",ISNUMBER(E5)),VLOOKUP(B5,Fórmulas,5,FALSE)*E5,"") ->  | I5: =IF(AND(B5<>"",ISNUMBER(E5)),VLOOKUP(B5,Fórmulas,6,FALSE)*E5,"") ->  | J5: =IF(AND(B5<>"",ISNUMBER(E5)),SUM(G5:I5),"") ->  | M5: =IF(G5<>"",G5/$G$19,"") ->  | N5: =IF(H5<>"",H5/$H$19,"") ->  | O5: =IF(I5<>"",I5/$I$19,"") ->  | P5: =IF(J5<>"",J5/$J$19,"") ->  | R5: =IF(B5<>"",VLOOKUP(B5,Fórmulas,8,FALSE),"") ->  | S5: 1 | T5: =IF(R5<>"",E5*R5/S5,"") ->  | U5: =IF(AND(T5<>"",$V$1<>""),T5/$V$1,"") ->  | V5: =IF(AND(T5<>"",R5>0),T5/$T$19,"") -> 
S6: 1
S7: 1
S8: 1
S9: 1
S10: 1
S11: 1
S12: 1
S13: 1
S14: 1
S15: 1
S16: 1
S17: 1
A19: Costo - Costo (Totales): | G19: =IF(COUNT(G5:G17)>0,SUM(G5:G17),"") ->  | H19: =IF(COUNT(H5:H17)>0,SUM(H5:H17),"") ->  | I19: =IF(COUNT(I5:I17)>0,SUM(I5:I17),"") ->  | J19: =IF(COUNT(J5:J17)>0,SUM(J5:J17),"") ->  | K19: =IF(COUNT(K5:K17)>0,SUM(K5:K17),"") ->  | M19: =IF(COUNT(M5:M17)>0,SUM(M5:M17),"") ->  | N19: =IF(COUNT(N5:N17)>0,SUM(N5:N17),"") ->  | O19: =IF(COUNT(O5:O17)>0,SUM(O5:O17),"") ->  | P19: =IF(COUNT(P5:P17)>0,SUM(P5:P17),"") ->  | T19: =IF(COUNT(T5:T17)>0,SUM(T5:T17),"") ->  | U19: =IF(COUNT(U5:U17)>0,SUM(U5:U17),"") ->  | V19: =IF(COUNT(V5:V17)>0,SUM(V5:V17),"") -> 
A21: Gastos Generales: | E21: 0.15 | G21: =IF(J19<>"",E21*J19,"") -> 
A23: Subtotal: | G23: =IF(J19<>"",J19+G21,"") -> 
A25: Beneficios: | E25: 0.1 | G25: =IF(G23<>"",G23*E25,"") -> 
A27: Subtotal: | G27: =IF(G23<>"",G23+G25,"") -> 
A29: Impuestos: IVA 21% + Ingresos Brutos 3.4% Tasa Municipal 0.5%: | E29: 0.249 | G29: =IF(G27<>"",G27*E29,"") -> 
A31: Totales: | G31: =IF(G27<>"",ROUNDUP(G27+G29,2),"") -> 
A33: =IF(G31<>"",letras(G31,"Son Pesos: "),"") -> 
